[Event "*** Titled Tuesday Blitz"]
[Site "Chess.com"]
[Date "2021.03.09"]
[Round "5"]
[White "Kislov_Oleg"]
[Black "grandcoach"]
[Result "1-0"]
[WhiteElo "2487"]
[BlackElo "2251"]
[TimeControl "180+1"]
[EndTime "10:58:20 PST"]
[Termination "Kislov_Oleg won by resignation"]

1. e4 {[%clk 0:03:00.9]} 1... c5 {[%clk 0:02:59.1]} 2. Nf3 {[%clk 0:03:00]} 2...
Nc6 {[%clk 0:02:55]} 3. c3 {[%clk 0:03:00]} 3... Nf6 {[%clk 0:02:51.6]} 4. e5
{[%clk 0:03:00]} 4... Nd5 {[%clk 0:02:52.1]} 5. d4 {[%clk 0:03:00.9]} 5... cxd4
{[%clk 0:02:52.2]} 6. cxd4 {[%clk 0:03:01.6]} 6... d6 {[%clk 0:02:51.8]} 7. Bc4
{[%clk 0:03:00.6]} 7... dxe5 {[%clk 0:02:52.3]} 8. dxe5 {[%clk 0:02:57.2]} 8...
Ndb4 {[%clk 0:02:51.9]} 9. Qb3 {[%clk 0:02:22.5]} 9... e6 {[%clk 0:02:51.6]} 10.
O-O {[%clk 0:02:09.3]} 10... Na5 {[%clk 0:02:50.5]} 11. Bb5+ {[%clk 0:02:07.1]}
11... Bd7 {[%clk 0:02:50.4]} 12. Qa4 {[%clk 0:02:06.1]} 12... Bxb5 {[%clk
0:02:22]} 13. Qxb5+ {[%clk 0:02:05.3]} 13... Nac6 {[%clk 0:02:16.8]} 14. a3
{[%clk 0:01:58.4]} 14... Nc2 {[%clk 0:02:07.6]} 15. Qxb7 {[%clk 0:01:48.4]}
15... Qc8 {[%clk 0:01:52.5]} 16. Qxc8+ {[%clk 0:01:44.9]} 16... Rxc8 {[%clk
0:01:53.4]} 17. Ra2 {[%clk 0:01:45.3]} 17... a5 {[%clk 0:01:30.2]} 18. b4 {[%clk
0:01:25.4]} 18... N2d4 {[%clk 0:01:29.7]} 19. Nxd4 {[%clk 0:01:24.2]} 19... Nxd4
{[%clk 0:01:30.6]} 20. bxa5 {[%clk 0:01:23]} 20... Bc5 {[%clk 0:01:14.7]} 21.
Be3 {[%clk 0:01:18.9]} 21... O-O {[%clk 0:01:07.6]} 22. Nc3 {[%clk 0:01:05.6]}
22... Nb3 {[%clk 0:00:59.1]} 23. Bxc5 {[%clk 0:01:01.9]} 23... Rxc5 {[%clk
0:01:00]} 24. Ne2 {[%clk 0:00:47]} 24... Rxe5 {[%clk 0:00:57.7]} 25. a6 {[%clk
0:00:45.3]} 25... Ra5 {[%clk 0:00:52.2]} 26. Rb1 {[%clk 0:00:44.6]} 26... Rd8
{[%clk 0:00:38.3]} 27. Rab2 {[%clk 0:00:31.7]} 27... Rxa3 {[%clk 0:00:37.6]} 28.
a7 {[%clk 0:00:28.9]} 28... Na5 {[%clk 0:00:07.7]} 29. a8=Q {[%clk 0:00:26.6]}
29... Rxa8 {[%clk 0:00:05.1]} 30. Rb8+ {[%clk 0:00:26.3]} 1-0

[Event "*** Titled Tuesday Blitz"]
[Site "Chess.com"]
[Date "2021.03.09"]
[Round "5"]
[White "Korchmar_Vasiliy"]
[Black "ShahMatKanal"]
[Result "1-0"]
[WhiteElo "2646"]
[BlackElo "2492"]
[TimeControl "180+1"]
[EndTime "10:58:21 PST"]
[Termination "Korchmar_Vasiliy won on time"]

1. d4 {[%clk 0:03:00.9]} 1... d5 {[%clk 0:02:59.6]} 2. Nf3 {[%clk 0:03:01.1]}
2... Nf6 {[%clk 0:02:59.4]} 3. Bf4 {[%clk 0:03:01.7]} 3... c5 {[%clk 0:02:58.9]}
4. e3 {[%clk 0:03:01.9]} 4... e6 {[%clk 0:02:55.2]} 5. Nbd2 {[%clk 0:03:01.9]}
5... Nc6 {[%clk 0:02:55.3]} 6. c3 {[%clk 0:03:01.5]} 6... Bd6 {[%clk 0:02:55.7]}
7. Bg3 {[%clk 0:03:01.8]} 7... cxd4 {[%clk 0:02:39.5]} 8. exd4 {[%clk
0:03:01.1]} 8... Qc7 {[%clk 0:02:40]} 9. Bd3 {[%clk 0:02:58.4]} 9... O-O {[%clk
0:02:39.7]} 10. Qe2 {[%clk 0:02:56.3]} 10... Bxg3 {[%clk 0:02:10.9]} 11. hxg3
{[%clk 0:02:57.2]} 11... h6 {[%clk 0:02:07]} 12. Ne5 {[%clk 0:02:57]} 12... Nd7
{[%clk 0:01:49.4]} 13. Ndf3 {[%clk 0:01:44]} 13... Ndxe5 {[%clk 0:01:46]} 14.
dxe5 {[%clk 0:01:44.5]} 14... f6 {[%clk 0:01:40.1]} 15. exf6 {[%clk 0:01:40.8]}
15... Rxf6 {[%clk 0:01:41]} 16. Bb5 {[%clk 0:01:27.1]} 16... Bd7 {[%clk
0:01:30.5]} 17. O-O {[%clk 0:01:27.1]} 17... a6 {[%clk 0:01:24.8]} 18. Bxc6
{[%clk 0:01:19.5]} 18... Bxc6 {[%clk 0:01:25.7]} 19. a4 {[%clk 0:01:19.2]} 19...
Be8 {[%clk 0:01:07.7]} 20. Ne5 {[%clk 0:01:15.7]} 20... g5 {[%clk 0:00:57.1]}
21. f4 {[%clk 0:01:10.6]} 21... Qg7 {[%clk 0:00:41.2]} 22. fxg5 {[%clk
0:00:57.4]} 22... Rxf1+ {[%clk 0:00:42.1]} 23. Rxf1 {[%clk 0:00:56.1]} 23...
hxg5 {[%clk 0:00:42]} 24. Ng4 {[%clk 0:00:47.8]} 24... Bh5 {[%clk 0:00:19.2]}
25. Qxe6+ {[%clk 0:00:45.3]} 25... Kh8 {[%clk 0:00:19.7]} 26. Nf6 {[%clk
0:00:42.3]} 26... Qh6 {[%clk 0:00:14.2]} 27. Qh3 {[%clk 0:00:35.7]} 27... Rf8
{[%clk 0:00:09.3]} 28. Qxh5 {[%clk 0:00:27.8]} 28... Rxf6 {[%clk 0:00:08.8]} 29.
Qe8+ {[%clk 0:00:28.4]} 29... Kg7 {[%clk 0:00:05.1]} 30. Qe7+ {[%clk 0:00:28.5]}
1-0

[Event "*** Titled Tuesday Blitz"]
[Site "Chess.com"]
[Date "2021.03.09"]
[Round "5"]
[White "bogcsab"]
[Black "MillyNeuf"]
[Result "0-1"]
[WhiteElo "2161"]
[BlackElo "2282"]
[TimeControl "180+1"]
[EndTime "10:58:22 PST"]
[Termination "MillyNeuf won on time"]

1. d4 {[%clk 0:03:00.9]} 1... Nf6 {[%clk 0:02:59.2]} 2. c4 {[%clk 0:02:58.5]}
2... e6 {[%clk 0:02:59.1]} 3. Nf3 {[%clk 0:02:58.1]} 3... d5 {[%clk 0:02:57.4]}
4. Nc3 {[%clk 0:02:56.9]} 4... Be7 {[%clk 0:02:57.2]} 5. cxd5 {[%clk 0:02:52.8]}
5... exd5 {[%clk 0:02:58.1]} 6. g3 {[%clk 0:02:50.2]} 6... O-O {[%clk
0:02:57.4]} 7. Bg2 {[%clk 0:02:50.8]} 7... c6 {[%clk 0:02:57.2]} 8. O-O {[%clk
0:02:51.3]} 8... Bf5 {[%clk 0:02:57.1]} 9. Ne5 {[%clk 0:02:50.6]} 9... Nbd7
{[%clk 0:02:48.5]} 10. Nd3 {[%clk 0:02:51.2]} 10... Re8 {[%clk 0:02:46.4]} 11.
f3 {[%clk 0:02:51.3]} 11... Bd6 {[%clk 0:02:42.2]} 12. Re1 {[%clk 0:02:50.8]}
12... Qb6 {[%clk 0:02:28]} 13. e3 {[%clk 0:02:01.3]} 13... Re7 {[%clk
0:02:10.4]} 14. Nf2 {[%clk 0:02:00.8]} 14... Rae8 {[%clk 0:02:04.6]} 15. e4
{[%clk 0:01:53.8]} 15... dxe4 {[%clk 0:02:00.3]} 16. fxe4 {[%clk 0:01:53.9]}
16... Bg6 {[%clk 0:01:58]} 17. e5 {[%clk 0:01:05]} 17... Bb8 {[%clk 0:01:53.3]}
18. Na4 {[%clk 0:00:44.9]} 18... Qc7 {[%clk 0:01:36.3]} 19. Bf4 {[%clk
0:00:28.5]} 19... Qc8 {[%clk 0:01:23.9]} 20. Bg5 {[%clk 0:00:23.7]} 20... h6
{[%clk 0:01:21.6]} 21. Bh4 {[%clk 0:00:21.3]} 21... Bh7 {[%clk 0:01:03.6]} 22.
Qd2 {[%clk 0:00:21.1]} 22... g5 {[%clk 0:00:55.6]} 23. Bxg5 {[%clk 0:00:20.5]}
23... hxg5 {[%clk 0:00:56.5]} 24. Qxg5+ {[%clk 0:00:20.6]} 24... Kh8 {[%clk
0:00:57]} 25. Ne4 {[%clk 0:00:09.1]} 25... Nd5 {[%clk 0:00:43.8]} 26. Qh6 {[%clk
0:00:02.6]} 26... Rg8 {[%clk 0:00:29.9]} 27. Ng5 {[%clk 0:00:02.3]} 27... Rxg5
{[%clk 0:00:24.1]} 28. Qxg5 {[%clk 0:00:01.9]} 28... Qg8 {[%clk 0:00:23.1]} 0-1

[Event "*** Titled Tuesday Blitz"]
[Site "Chess.com"]
[Date "2021.03.09"]
[Round "5"]
[White "boasovietica"]
[Black "VladimirPotkin"]
[Result "0-1"]
[WhiteElo "2438"]
[BlackElo "2607"]
[TimeControl "180+1"]
[EndTime "10:58:24 PST"]
[Termination "VladimirPotkin won by resignation"]

1. e4 {[%clk 0:03:00.9]} 1... c5 {[%clk 0:02:58.8]} 2. Nf3 {[%clk 0:02:58]} 2...
e6 {[%clk 0:02:59.2]} 3. Nc3 {[%clk 0:02:56.6]} 3... Nc6 {[%clk 0:02:55.8]} 4.
d4 {[%clk 0:02:51.7]} 4... cxd4 {[%clk 0:02:56]} 5. Nxd4 {[%clk 0:02:52.3]} 5...
Qc7 {[%clk 0:02:55.9]} 6. Nb3 {[%clk 0:02:52.3]} 6... a6 {[%clk 0:02:55.5]} 7.
Bd3 {[%clk 0:02:52.6]} 7... b5 {[%clk 0:02:55.5]} 8. O-O {[%clk 0:02:52.5]} 8...
Bb7 {[%clk 0:02:55.8]} 9. f4 {[%clk 0:02:52.6]} 9... Nb4 {[%clk 0:02:49]} 10.
Qf3 {[%clk 0:02:50.2]} 10... Nf6 {[%clk 0:02:48.1]} 11. Bd2 {[%clk 0:02:47.7]}
11... Be7 {[%clk 0:02:47.8]} 12. Kh1 {[%clk 0:02:47.4]} 12... O-O {[%clk
0:02:46.4]} 13. Rae1 {[%clk 0:02:30.8]} 13... Nxd3 {[%clk 0:02:19.5]} 14. cxd3
{[%clk 0:02:30.3]} 14... d5 {[%clk 0:02:20.4]} 15. e5 {[%clk 0:02:13.5]} 15...
d4 {[%clk 0:02:20.1]} 16. Ne4 {[%clk 0:02:04.7]} 16... Nxe4 {[%clk 0:02:18.7]}
17. dxe4 {[%clk 0:02:01]} 17... Qc2 {[%clk 0:01:59.3]} 18. Rf2 {[%clk
0:01:53.7]} 18... Rac8 {[%clk 0:01:29.7]} 19. Bb4 {[%clk 0:01:41]} 19... Bxb4
{[%clk 0:01:27.5]} 20. Rxc2 {[%clk 0:01:34.3]} 20... Rxc2 {[%clk 0:01:28.4]} 21.
Rd1 {[%clk 0:01:18.4]} 21... Rd8 {[%clk 0:00:58.2]} 22. h3 {[%clk 0:01:03.3]}
22... Rxb2 {[%clk 0:00:52.1]} 23. Rxd4 {[%clk 0:00:53.1]} 23... Rxd4 {[%clk
0:00:51.7]} 24. Nxd4 {[%clk 0:00:53]} 24... g6 {[%clk 0:00:44.1]} 25. Nb3 {[%clk
0:00:29.4]} 25... Rxa2 {[%clk 0:00:41.2]} 26. Qd3 {[%clk 0:00:29.2]} 26... Bf8
{[%clk 0:00:28.6]} 27. Nd4 {[%clk 0:00:21.1]} 27... b4 {[%clk 0:00:27.7]} 28.
Nf3 {[%clk 0:00:19.6]} 28... a5 {[%clk 0:00:26.4]} 29. Qd7 {[%clk 0:00:15.2]}
29... Bxe4 {[%clk 0:00:24.5]} 30. Ng5 {[%clk 0:00:15.5]} 30... Bxg2+ {[%clk
0:00:21.9]} 31. Kg1 {[%clk 0:00:11.7]} 31... Bc5+ {[%clk 0:00:21.2]} 32. Kh2
{[%clk 0:00:11]} 32... Bc6+ {[%clk 0:00:21.7]} 0-1

[Event "*** Titled Tuesday Blitz"]
[Site "Chess.com"]
[Date "2021.03.09"]
[Round "5"]
[White "Koalaskakistis"]
[Black "dolynachess"]
[Result "0-1"]
[WhiteElo "2553"]
[BlackElo "2438"]
[TimeControl "180+1"]
[EndTime "10:58:24 PST"]
[Termination "dolynachess won by checkmate"]

1. d4 {[%clk 0:03:00.9]} 1... Nf6 {[%clk 0:02:59.6]} 2. Bf4 {[%clk 0:03:00.9]}
2... c5 {[%clk 0:02:49.4]} 3. d5 {[%clk 0:02:57.7]} 3... b5 {[%clk 0:02:47.8]}
4. g3 {[%clk 0:02:51.1]} 4... d6 {[%clk 0:02:47.2]} 5. Bg2 {[%clk 0:02:51.1]}
5... g6 {[%clk 0:02:41.7]} 6. e4 {[%clk 0:02:48.5]} 6... Bg7 {[%clk 0:02:41.2]}
7. Ne2 {[%clk 0:02:42.4]} 7... O-O {[%clk 0:02:33.8]} 8. O-O {[%clk 0:02:40.7]}
8... a5 {[%clk 0:02:32.3]} 9. c4 {[%clk 0:02:37.3]} 9... bxc4 {[%clk 0:02:26.4]}
10. Na3 {[%clk 0:02:30.5]} 10... Ba6 {[%clk 0:02:20.7]} 11. Qc2 {[%clk
0:02:23.7]} 11... Nbd7 {[%clk 0:02:10.6]} 12. Nxc4 {[%clk 0:02:22.2]} 12... Nb6
{[%clk 0:02:10.5]} 13. Nxb6 {[%clk 0:02:17.7]} 13... Qxb6 {[%clk 0:02:09.9]} 14.
Rab1 {[%clk 0:02:14]} 14... a4 {[%clk 0:02:00.2]} 15. Rfe1 {[%clk 0:02:11]}
15... Ng4 {[%clk 0:01:57.9]} 16. h3 {[%clk 0:02:06.9]} 16... Ne5 {[%clk
0:01:57]} 17. Bxe5 {[%clk 0:02:02.7]} 17... Bxe5 {[%clk 0:01:55.9]} 18. f4
{[%clk 0:02:02.8]} 18... Bg7 {[%clk 0:01:49.8]} 19. Nc3 {[%clk 0:02:02.9]} 19...
a3 {[%clk 0:01:41.9]} 20. bxa3 {[%clk 0:01:46.5]} 20... Qa5 {[%clk 0:01:41.3]}
21. e5 {[%clk 0:01:44.3]} 21... Rfb8 {[%clk 0:01:30.5]} 22. Ne4 {[%clk
0:01:33.6]} 22... Qxa3 {[%clk 0:01:16.9]} 23. exd6 {[%clk 0:01:29.4]} 23... exd6
{[%clk 0:01:07.7]} 24. Nxd6 {[%clk 0:01:29.2]} 24... Qxg3 {[%clk 0:00:59.1]} 25.
Rxb8+ {[%clk 0:01:18.8]} 25... Rxb8 {[%clk 0:00:58.1]} 26. Qe4 {[%clk
0:01:18.9]} 26... Bh6 {[%clk 0:00:25.2]} 27. Nxf7 {[%clk 0:00:20.5]} 27... Bxf4
{[%clk 0:00:24.3]} 28. Qe6 {[%clk 0:00:20.5]} 28... Qh2+ {[%clk 0:00:19.9]} 29.
Kf2 {[%clk 0:00:20.6]} 29... Rb2+ {[%clk 0:00:19.2]} 30. Kf3 {[%clk 0:00:15]}
30... Qg3+ {[%clk 0:00:17.5]} 31. Ke4 {[%clk 0:00:14.9]} 31... Bd3# {[%clk
0:00:17.6]} 0-1

[Event "*** Titled Tuesday Blitz"]
[Site "Chess.com"]
[Date "2021.03.09"]
[Round "5"]
[White "ymoy"]
[Black "SharapovEvgeny"]
[Result "0-1"]
[WhiteElo "2607"]
[BlackElo "2487"]
[TimeControl "180+1"]
[EndTime "10:58:25 PST"]
[Termination "SharapovEvgeny won by checkmate"]

1. e4 {[%clk 0:02:14.6]} 1... c5 {[%clk 0:02:56.9]} 2. Nf3 {[%clk 0:02:14.4]}
2... d6 {[%clk 0:02:56.1]} 3. d4 {[%clk 0:02:15]} 3... cxd4 {[%clk 0:02:55.5]}
4. Nxd4 {[%clk 0:02:15.9]} 4... Nf6 {[%clk 0:02:55.3]} 5. Nc3 {[%clk 0:02:16.3]}
5... Nc6 {[%clk 0:02:55.3]} 6. Bg5 {[%clk 0:02:16.3]} 6... Qb6 {[%clk
0:02:54.7]} 7. Nb3 {[%clk 0:02:14.6]} 7... e6 {[%clk 0:02:54.2]} 8. Qd2 {[%clk
0:02:13.6]} 8... Be7 {[%clk 0:02:53.6]} 9. O-O-O {[%clk 0:02:13.5]} 9... O-O
{[%clk 0:02:53.3]} 10. Be3 {[%clk 0:02:13.5]} 10... Qc7 {[%clk 0:02:52.5]} 11.
f3 {[%clk 0:02:13.9]} 11... Rd8 {[%clk 0:02:50.5]} 12. g4 {[%clk 0:02:14]} 12...
d5 {[%clk 0:02:48.2]} 13. exd5 {[%clk 0:02:14.3]} 13... Nxd5 {[%clk 0:02:47.5]}
14. Nxd5 {[%clk 0:02:13.2]} 14... Rxd5 {[%clk 0:02:46.5]} 15. Qe1 {[%clk
0:02:07.6]} 15... Nb4 {[%clk 0:02:36.3]} 16. c3 {[%clk 0:01:59.7]} 16... Rxd1+
{[%clk 0:02:31.9]} 17. Qxd1 {[%clk 0:01:58.5]} 17... Nd5 {[%clk 0:02:30.5]} 18.
Bd2 {[%clk 0:01:50.5]} 18... b6 {[%clk 0:02:26]} 19. Bd3 {[%clk 0:01:45.2]}
19... a5 {[%clk 0:02:22.8]} 20. Nd4 {[%clk 0:01:36.1]} 20... e5 {[%clk
0:02:17.6]} 21. Nb5 {[%clk 0:01:31.3]} 21... Qc5 {[%clk 0:02:15.9]} 22. Re1
{[%clk 0:01:25.2]} 22... f6 {[%clk 0:02:04]} 23. Qc2 {[%clk 0:01:09.1]} 23... h6
{[%clk 0:01:59.3]} 24. Qa4 {[%clk 0:00:33.1]} 24... Be6 {[%clk 0:01:53]} 25. Qe4
{[%clk 0:00:31.4]} 25... Kf8 {[%clk 0:01:47.6]} 26. Qh7 {[%clk 0:00:16.4]} 26...
Bg8 {[%clk 0:01:23.1]} 27. Qh8 {[%clk 0:00:16]} 27... Nb4 {[%clk 0:01:19.3]} 28.
Bh7 {[%clk 0:00:12.2]} 28... Kf7 {[%clk 0:01:18.9]} 29. Na3 {[%clk 0:00:06.7]}
29... Bxh7 {[%clk 0:01:15]} 30. Qxh7 {[%clk 0:00:07.6]} 30... Rd8 {[%clk
0:01:09.3]} 31. Be3 {[%clk 0:00:02.1]} 31... Nd3+ {[%clk 0:01:05.3]} 32. Kb1
{[%clk 0:00:02.3]} 32... Qc6 {[%clk 0:00:59.1]} 33. Rf1 {[%clk 0:00:02.5]} 33...
Bxa3 {[%clk 0:00:56.6]} 34. Qf5 {[%clk 0:00:01.7]} 34... Bxb2 {[%clk 0:00:51.8]}
35. f4 {[%clk 0:00:01.3]} 35... Bxc3 {[%clk 0:00:49.6]} 36. fxe5 {[%clk
0:00:01.1]} 36... Qb5+ {[%clk 0:00:46.8]} 37. Kc2 {[%clk 0:00:02]} 37... Qb2+
{[%clk 0:00:45.5]} 38. Kd1 {[%clk 0:00:02.9]} 38... Nf2# {[%clk 0:00:42.5]} 0-1

[Event "*** Titled Tuesday Blitz"]
[Site "Chess.com"]
[Date "2021.03.09"]
[Round "5"]
[White "AliKa2810"]
[Black "Funo09"]
[Result "0-1"]
[WhiteElo "2548"]
[BlackElo "2728"]
[TimeControl "180+1"]
[EndTime "10:58:26 PST"]
[Termination "Funo09 won on time"]

1. c4 {[%clk 0:03:00.9]} 1... e5 {[%clk 0:02:29.2]} 2. Nc3 {[%clk 0:03:00]} 2...
Bb4 {[%clk 0:02:27.5]} 3. Nd5 {[%clk 0:02:59]} 3... Be7 {[%clk 0:02:28.1]} 4. d4
{[%clk 0:02:53]} 4... d6 {[%clk 0:02:28.4]} 5. g3 {[%clk 0:02:39.1]} 5... c6
{[%clk 0:02:28.2]} 6. Nxe7 {[%clk 0:02:37.9]} 6... Qxe7 {[%clk 0:02:29.1]} 7.
Bg2 {[%clk 0:02:36.9]} 7... f5 {[%clk 0:02:28.9]} 8. dxe5 {[%clk 0:01:54.5]}
8... dxe5 {[%clk 0:02:28.7]} 9. Nf3 {[%clk 0:01:55]} 9... Nf6 {[%clk 0:02:19.4]}
10. O-O {[%clk 0:01:55.5]} 10... O-O {[%clk 0:02:19.9]} 11. b3 {[%clk
0:01:52.7]} 11... Na6 {[%clk 0:02:06.5]} 12. Bb2 {[%clk 0:01:51.9]} 12... e4
{[%clk 0:02:03.4]} 13. Nd4 {[%clk 0:01:51.1]} 13... Bd7 {[%clk 0:02:03.4]} 14.
Qc1 {[%clk 0:01:41.5]} 14... Rad8 {[%clk 0:02:02]} 15. Ba3 {[%clk 0:01:37.2]}
15... Nc5 {[%clk 0:01:52.4]} 16. Qc3 {[%clk 0:01:36.3]} 16... Rfe8 {[%clk
0:01:29.1]} 17. Rad1 {[%clk 0:01:30.4]} 17... b6 {[%clk 0:01:21.6]} 18. h3
{[%clk 0:01:11.9]} 18... Qe5 {[%clk 0:01:13.5]} 19. Qe3 {[%clk 0:01:11]} 19...
h6 {[%clk 0:01:03.7]} 20. Bb2 {[%clk 0:00:41.1]} 20... Qc7 {[%clk 0:00:56.1]}
21. b4 {[%clk 0:00:39.8]} 21... Na4 {[%clk 0:00:50.7]} 22. Ba1 {[%clk
0:00:40.1]} 22... c5 {[%clk 0:00:49.4]} 23. bxc5 {[%clk 0:00:30.8]} 23... Nxc5
{[%clk 0:00:49.4]} 24. Nb5 {[%clk 0:00:21.8]} 24... Bxb5 {[%clk 0:00:41.2]} 25.
cxb5 {[%clk 0:00:22.7]} 25... Nd5 {[%clk 0:00:37.2]} 26. Qa3 {[%clk 0:00:21.9]}
26... f4 {[%clk 0:00:32]} 27. Rc1 {[%clk 0:00:11]} 27... e3 {[%clk 0:00:27]} 28.
Bxd5+ {[%clk 0:00:05.9]} 28... Rxd5 {[%clk 0:00:27.9]} 29. fxe3 {[%clk
0:00:03.9]} 29... Rxe3 {[%clk 0:00:28.8]} 30. Qb4 {[%clk 0:00:03.7]} 30... Rxg3+
{[%clk 0:00:27.7]} 31. Kh2 {[%clk 0:00:03.7]} 31... f3 {[%clk 0:00:26.6]} 0-1

[Event "*** Titled Tuesday Blitz"]
[Site "Chess.com"]
[Date "2021.03.09"]
[Round "5"]
[White "buhomurciano"]
[Black "NovikovaGalina"]
[Result "0-1"]
[WhiteElo "2244"]
[BlackElo "2407"]
[TimeControl "180+1"]
[EndTime "10:58:26 PST"]
[Termination "NovikovaGalina won on time"]

1. e4 {[%clk 0:03:00.9]} 1... e6 {[%clk 0:02:44.8]} 2. d4 {[%clk 0:02:59.7]}
2... d5 {[%clk 0:02:45.7]} 3. Nd2 {[%clk 0:02:58.1]} 3... a6 {[%clk 0:02:43]} 4.
Ngf3 {[%clk 0:02:56.8]} 4... c5 {[%clk 0:02:40.6]} 5. exd5 {[%clk 0:02:50.5]}
5... exd5 {[%clk 0:02:39.8]} 6. Be2 {[%clk 0:02:47.7]} 6... Nf6 {[%clk
0:02:37.3]} 7. O-O {[%clk 0:02:44.7]} 7... Be7 {[%clk 0:02:37.5]} 8. c4 {[%clk
0:02:40.2]} 8... O-O {[%clk 0:02:35.7]} 9. dxc5 {[%clk 0:02:31.5]} 9... Bxc5
{[%clk 0:02:34.7]} 10. b3 {[%clk 0:02:25.5]} 10... Nc6 {[%clk 0:02:32.6]} 11.
Bb2 {[%clk 0:02:24]} 11... d4 {[%clk 0:02:31]} 12. Re1 {[%clk 0:02:09.8]} 12...
Bg4 {[%clk 0:02:22.9]} 13. Nxd4 {[%clk 0:01:56.6]} 13... Bxd4 {[%clk 0:01:40.3]}
14. Bxd4 {[%clk 0:01:37.5]} 14... Nxd4 {[%clk 0:01:34.1]} 15. Bxg4 {[%clk
0:01:36.4]} 15... Nxg4 {[%clk 0:01:35]} 16. Qxg4 {[%clk 0:01:35.7]} 16... Nc2
{[%clk 0:01:34.9]} 17. Nf3 {[%clk 0:00:50.4]} 17... Nxa1 {[%clk 0:01:31.9]} 18.
Rxa1 {[%clk 0:00:49.8]} 18... Re8 {[%clk 0:01:30.9]} 19. h4 {[%clk 0:00:48.5]}
19... h6 {[%clk 0:01:28.2]} 20. Nd4 {[%clk 0:00:38.9]} 20... Qf6 {[%clk
0:01:22.9]} 21. Rf1 {[%clk 0:00:32.5]} 21... Re5 {[%clk 0:01:18.8]} 22. Nc2
{[%clk 0:00:27.5]} 22... Rae8 {[%clk 0:01:16.7]} 23. Ne3 {[%clk 0:00:27]} 23...
Re4 {[%clk 0:01:15.2]} 24. Qd7 {[%clk 0:00:20.5]} 24... R4e7 {[%clk 0:01:02.8]}
25. Qd5 {[%clk 0:00:15.8]} 25... Re5 {[%clk 0:00:49.7]} 26. Qxb7 {[%clk
0:00:15.7]} 26... Qxh4 {[%clk 0:00:45.8]} 27. g3 {[%clk 0:00:10.1]} 27... Qh3
{[%clk 0:00:45.3]} 28. Qg2 {[%clk 0:00:07.8]} 28... Qd7 {[%clk 0:00:43.6]} 29.
Rd1 {[%clk 0:00:07.2]} 29... Qe7 {[%clk 0:00:39.9]} 30. Nd5 {[%clk 0:00:07.4]}
30... Qa3 {[%clk 0:00:40.1]} 31. Rd2 {[%clk 0:00:05.8]} 31... Qc1+ {[%clk
0:00:35.6]} 32. Qf1 {[%clk 0:00:05]} 32... Re1 {[%clk 0:00:28.5]} 0-1

[Event "*** Titled Tuesday Blitz"]
[Site "Chess.com"]
[Date "2021.03.09"]
[Round "5"]
[White "KhamzinOlzhas"]
[Black "A-S-00"]
[Result "1-0"]
[WhiteElo "2546"]
[BlackElo "2396"]
[TimeControl "180+1"]
[EndTime "10:58:28 PST"]
[Termination "KhamzinOlzhas won by resignation"]

1. e4 {[%clk 0:03:00.9]} 1... c5 {[%clk 0:02:59.2]} 2. Nc3 {[%clk 0:02:59.3]}
2... e6 {[%clk 0:02:58.3]} 3. g3 {[%clk 0:02:58.9]} 3... Nc6 {[%clk 0:02:58.1]}
4. Bg2 {[%clk 0:02:57.9]} 4... g6 {[%clk 0:02:57.6]} 5. d3 {[%clk 0:02:56.4]}
5... Bg7 {[%clk 0:02:57.3]} 6. Nge2 {[%clk 0:02:51.3]} 6... Nge7 {[%clk
0:02:56.1]} 7. Bg5 {[%clk 0:02:49.7]} 7... O-O {[%clk 0:02:52.6]} 8. Qd2 {[%clk
0:02:48.7]} 8... Re8 {[%clk 0:02:49.3]} 9. Bh6 {[%clk 0:02:44.2]} 9... Bh8
{[%clk 0:02:47.8]} 10. h4 {[%clk 0:02:44.1]} 10... d5 {[%clk 0:02:42.2]} 11. h5
{[%clk 0:02:43.6]} 11... dxe4 {[%clk 0:01:53.2]} 12. hxg6 {[%clk 0:02:42.5]}
12... fxg6 {[%clk 0:01:45]} 13. Bxe4 {[%clk 0:02:35.5]} 13... Nf5 {[%clk
0:01:41.7]} 14. g4 {[%clk 0:02:30.5]} 14... Nfd4 {[%clk 0:01:12.6]} 15. Nxd4
{[%clk 0:01:55.6]} 15... Nxd4 {[%clk 0:00:58]} 16. O-O-O {[%clk 0:01:54.9]}
16... Qe7 {[%clk 0:00:52]} 17. f4 {[%clk 0:01:42.7]} 17... Rb8 {[%clk
0:00:43.7]} 18. Bg5 {[%clk 0:01:30.1]} 18... Qf7 {[%clk 0:00:41.8]} 19. Rh3
{[%clk 0:01:22.3]} 19... e5 {[%clk 0:00:28.3]} 20. f5 {[%clk 0:01:21.5]} 20...
gxf5 {[%clk 0:00:24.4]} 21. gxf5 {[%clk 0:01:22.4]} 21... Bxf5 {[%clk 0:00:22]}
22. Bxf5 {[%clk 0:00:55.6]} 22... Nxf5 {[%clk 0:00:16]} 23. Kb1 {[%clk
0:00:48.7]} 23... b5 {[%clk 0:00:14]} 24. Ne4 {[%clk 0:00:47.5]} 24... Rb7
{[%clk 0:00:13.5]} 25. Rf1 {[%clk 0:00:39]} 25... Qg6 {[%clk 0:00:08.8]} 26. Be3
{[%clk 0:00:35.4]} 26... Bg7 {[%clk 0:00:08.2]} 27. Bxc5 {[%clk 0:00:30.8]}
27... Qc6 {[%clk 0:00:05.1]} 28. Rxf5 {[%clk 0:00:26.8]} 28... Qe6 {[%clk
0:00:05]} 29. Qf2 {[%clk 0:00:24]} 29... Rc7 {[%clk 0:00:03]} 30. Rhf3 {[%clk
0:00:23.2]} 1-0